bitfinex/quotes_ETHUSD_20240716
["timestamp","ask_amount","ask_price","bid_price","bid_amount"]
[1721168906656,0.8239294,3426.1,3426.0,2.3344]
[1721168906872,2.9187,3426.2,3426.0,2.3344]
[1721168907269,3.0,3426.3,3426.0,2.3344]
[1721168907270,2.91877,3426.1,3426.0,2.3344]
[1721168908302,5.83754,3426.1,3426.0,2.3344]
[1721168911480,2.91877,3426.1,3426.0,2.3344]
[1721168912503,5.91867,3426.3,3426.0,2.3344]
[1721168913409,2.91877,3426.1,3426.0,2.3344]
[1721168914195,5.83754,3426.1,3426.0,2.3344]
[1721168920515,8.75631,3426.1,3426.0,2.3344]
[1721168920936,14.06251,3426.1,3426.0,2.3344]
[1721168924542,8.83754,3426.1,3426.0,2.3344]
[1721168924697,9.3611164,3426.1,3426.0,2.3344]
[1721168927551,9.3611164,3426.1,3426.0,2.2844]
[1721168934949,6.4423464,3426.1,3426.0,2.2844]
[1721168935761,2.91863,3426.3,3426.0,2.2844]
[1721168936057,2.91814,3426.9,3426.0,7.6976]
[1721168936272,3.091551,3427.2,3426.1,2.91872]
[1721168936273,2.91795,3427.1,3426.1,2.91872]
[1721168936423,2.91781,3427.3,3426.0,4.7788]
[1721168936760,2.91801,3427.0,3426.2,2.91862]
[1721168936987,2.91801,3427.0,3426.3,2.91859]
[1721168937656,2.91809,3426.9,3426.3,2.91859]
[1721168938151,5.42553,3427.6,3426.1,0.47788]
[1721168938152,5.508,3427.6,3426.1,0.47788]
[1721168938351,5.508,3427.6,3426.0,4.7788]
[1721168938352,2.9178,3427.3,3426.0,4.7788]
[1721168938552,2.91836,3426.6,3426.0,4.7788]
[1721168938718,2.91843,3426.5,3426.0,4.7788]
[1721168939534,2.91843,3426.5,3426.0,2.2844]
[1721168939759,3.502102,3426.5,3426.0,2.2844]
[1721168940244,2.91843,3426.5,3426.0,2.2844]
[1721168940417,2.91812,3426.9,3426.0,2.2844]
[1721168940620,2.91826,3426.7,3426.0,2.2844]
[1721168941053,2.91838,3426.6,3426.0,2.2844]
[1721168941929,2.91824,3426.8,3426.0,2.2844]
[1721168942134,2.91824,3426.8,3426.0,6.015472]
[1721168942949,2.91825,3426.7,3426.0,6.015472]
[1721168943261,2.91844,3426.5,3426.0,2.2844]
[1721168944852,2.91825,3426.7,3426.0,2.2844]
[1721168945532,2.91835,3426.6,3426.0,2.2844]
[1721168948043,2.91834,3426.6,3426.0,2.2844]
[1721168949279,5.83676,3426.6,3426.0,2.2844]
[1721168949468,2.91865,3426.3,3426.0,2.2844]
[1721168949782,5.42665,3426.3,3426.0,2.2844]
[1721168949936,2.91865,3426.3,3426.0,2.2844]
[1721168950143,2.91874,3426.2,3426.0,2.2844]
[1721168950438,5.83754,3426.1,3426.0,2.2844]
[1721168950782,6.421294,3426.1,3426.0,2.2844]
[1721168953214,9.340064,3426.1,3426.0,2.2844]
[1721168953355,14.15451469,3426.1,3426.0,2.2844]
[1721168953555,15.258834,3426.1,3426.0,2.2844]
[1721168954163,15.258834,3426.1,3423.8,2.92069]
[1721168954164,2.92021,3424.5,3423.9,7.37]
[1721168954372,2.91996,3424.7,3424.0,2.92048]
[1721168955497,2.91996,3424.7,3424.0,2.92049]
[1721168955681,2.91981,3424.9,3424.2,2.92033]
[1721168956287,2.91981,3424.9,3424.0,2.92049]
[1721168956491,2.91998,3424.7,3424.1,0.822349]
[1721168956865,5.84002,3424.7,3424.1,0.822349]
[1721168957190,2.92032,3424.3,3423.8,2.3824]
[1721168957396,2.92053,3424.1,3423.5,0.1478772]
[1721168957610,2.92044,3424.2,3423.5,0.1478772]
[1721168957611,2.92061,3424.0,3423.5,0.1478772]
[1721168958261,2.508,3424.3,3423.5,0.1478772]
[1721168958462,2.9209,3423.6,3423.5,0.1478772]
[1721168959682,2.92065,3423.9,3423.5,0.1478772]
[1721168959995,2.92073,3423.8,3423.5,0.1478772]
[1721168961056,2.92051,3424.1,3423.5,0.1478772]
[1721168961359,2.508,3424.3,3423.5,0.1478772]
[1721168961360,2.92072,3423.9,3423.5,0.1478772]
[1721168961555,2.92027,3424.4,3423.5,2.4679772]
[1721168961757,2.92045,3424.2,3423.6,0.24679772]
[1721168961962,2.92053,3424.1,3423.6,0.24679772]
[1721168962203,2.92053,3424.1,3423.5,2.4679772]
[1721168962403,5.92034,3424.3,3423.5,2.4679772]
[1721168962899,2.92045,3424.2,3423.5,2.4679772]
[1721168963599,2.92047,3424.1,3423.5,2.4679772]
[1721168964187,2.92058,3424.0,3423.5,2.4679772]
[1721168964795,0.583754,3424.0,3423.5,0.1478772]
[1721168965118,2.9209,3423.6,3423.5,0.1478772]
[1721168965269,5.8418,3423.6,3423.5,0.1478772]
[1721168968694,2.9209,3423.6,3423.5,0.1478772]
[1721168969892,2.92059,3424.0,3423.5,0.1478772]
[1721168970296,2.92052,3424.1,3423.5,0.1478772]
[1721168970880,2.92037,3424.3,3423.5,0.1478772]
[1721168970988,2.92018,3424.5,3423.6,5.27501]
[1721168971193,2.92023,3424.4,3423.6,5.27501]
[1721168971616,2.92023,3424.4,3423.7,2.92081]
[1721168971801,2.92008,3424.6,3423.7,2.92081]
[1721168972503,2.92019,3424.5,3423.7,3.78588119]
[1721168973997,2.91998,3424.7,3423.8,2.92068]
[1721168974199,2.91998,3424.7,3423.9,2.92058]
[1721168974925,2.91979,3424.9,3424.0,2.92049]
[1721168975109,3.0,3424.8,3424.1,2.92045]
[1721168975308,3.0,3424.8,3424.1,3.504553]
[1721168975702,3.0,3424.8,3424.2,2.92037]
[1721168975926,3.0,3424.8,3424.1,3.504553]
[1721168976252,5.91988,3424.8,3424.1,3.504553]
[1721168976428,5.91988,3424.8,3424.1,3.504523]
[1721168976629,5.91988,3424.8,3424.1,2.92042]
[1721168978251,5.91988,3424.8,3424.0,2.92051]
[1721168978252,8.83984,3424.8,3424.0,2.92051]
[1721168978962,5.91988,3424.8,3424.1,2.92042]
[1721168979314,5.91988,3424.8,3423.9,2.92056]
[1721168979315,2.92002,3424.7,3423.9,2.92056]
[1721168979850,2.92006,3424.6,3423.7,3.78585119]
[1721168980017,2.92022,3424.4,3423.7,3.78585119]
[1721168980925,2.92006,3424.6,3423.8,2.92071]
[1721168981353,5.91991,3424.8,3423.9,2.92063]
[1721168981560,5.91991,3424.8,3424.0,2.9205]
[1721168981861,2.91996,3424.7,3424.0,2.9205]
[1721168983246,2.91996,3424.7,3423.8,0.95154931]
[1721168983463,2.92005,3424.6,3423.9,0.55]
[1721168983667,2.92005,3424.6,3423.8,0.55]
[1721168984375,2.92005,3424.6,3423.9,2.92059]
[1721168984581,2.92005,3424.6,3423.9,2.92057]
[1721168984787,2.92005,3424.6,3424.0,2.92054]
[1721168985076,2.92005,3424.6,3423.8,3.47064]
[1721168985377,2.92005,3424.6,3423.9,2.92062]
[1721168986079,5.91991,3424.8,3424.0,2.92054]
[1721168986282,5.91991,3424.8,3424.1,2.92047]
[1721168986480,8.83986,3424.8,3424.1,2.92047]
[1721168986780,2.91996,3424.7,3424.1,2.92047]
[1721168987479,2.91996,3424.7,3424.0,2.92054]
[1721168988180,5.91992,3424.8,3424.1,2.92044]
[1721168989783,12.2592,3425.8,3424.2,2.41120556]
[1721168989949,2.4012,3425.8,3424.3,0.05839575]
[1721168990143,2.91898,3425.9,3425.1,2.91956]
[1721168990358,5.83765,3426.1,3425.1,2.91956]
[1721168990556,2.91881,3426.1,3425.1,2.91956]
[1721168990846,2.91862,3426.3,3425.5,2.9192]
[1721168991045,2.91878,3426.1,3425.4,2.91935]
[1721168991280,5.83729,3426.3,3425.5,2.91927]
[1721168991481,2.91869,3426.2,3425.5,2.91927]
[1721168992182,2.91879,3426.1,3425.5,2.91927]
[1721168994466,2.91862,3426.3,3425.5,5.83849]
[1721168995254,2.91868,3426.2,3425.5,2.91922]
[1721168995689,2.91868,3426.2,3425.5,5.83844]
[1721168995899,0.823829,3426.3,3425.6,2.91918]
[1721168996100,3.742479,3426.3,3425.6,2.91918]
[1721168996302,6.661149,3426.3,3425.6,2.91918]
[1721168996483,2.91874,3426.2,3425.4,2.91931]
[1721168997002,2.91878,3426.1,3425.1,2.91959]
[1721168997217,2.91878,3426.1,3425.3,2.9194]
[1721168997423,0.823829,3426.3,3424.7,7.37]
[1721168997587,2.508,3425.5,3424.3,2.92023]
[1721168997907,2.91968,3425.1,3424.3,2.92023]
[1721168998071,2.91968,3425.1,3424.4,2.9202]
[1721168998469,2.91978,3425.0,3423.9,2.2776]
[1721168998675,2.91946,3425.3,3423.9,2.2776]
[1721168998985,2.92018,3424.5,3423.8,2.92067]
[1721168999193,2.91991,3424.8,3423.5,0.1478772]
[1721168999503,3.0,3424.7,3424.1,2.9204]
[1721168999803,5.91997,3424.7,3424.0,2.92051]
[1721169000376,5.91997,3424.7,3424.1,2.92041]
[1721169000575,5.91997,3424.7,3423.8,2.92069]
[1721169000778,2.92015,3424.5,3423.8,3.51964072]
[1721169001020,2.92015,3424.5,3423.8,2.92069]
[1721169001521,2.92015,3424.5,3423.6,2.9209]
[1721169001522,2.92023,3424.4,3423.6,2.92089]
[1721169001831,2.92033,3424.3,3423.6,2.92089]
[1721169003741,3.0,3424.7,3424.0,2.92049]
[1721169004044,2.91962,3425.1,3424.3,2.92024]
[1721169004204,2.91945,3425.3,3424.4,3.439984]
[1721169004404,5.37152,3425.5,3424.1,2.2776]
[1721169004636,2.91985,3424.9,3424.1,5.19801]
[1721169004818,2.91957,3425.2,3424.4,2.92016]
[1721169005020,2.91957,3425.2,3424.5,2.9201]
[1721169005419,2.91936,3425.4,3424.6,2.92004]
[1721169005637,2.91952,3425.3,3424.6,2.92004]
[1721169005842,2.91955,3425.2,3424.6,2.92004]
[1721169006005,5.83917,3425.2,3424.5,0.639026]
[1721169006201,2.3877,3425.1,3423.5,7.5178772]
[1721169006406,2.508,3425.0,3423.6,2.92088]
[1721169006634,2.92012,3424.6,3423.8,2.92066]
[1721169007015,2.92012,3424.6,3423.7,2.92079]
[1721169007343,2.92031,3424.3,3423.7,2.92079]
[1721169007848,2.92018,3424.5,3423.7,2.92079]
[1721169008057,2.92018,3424.5,3423.7,6.44048272]
[1721169008337,2.92018,3424.5,3423.7,3.51969272]
[1721169008516,2.91982,3424.9,3423.8,2.92071]
[1721169008723,2.91964,3425.1,3424.3,2.92028]
[1721169009042,3.0,3425.0,3424.3,2.92028]
[1721169009246,3.0,3425.0,3424.3,3.50429]
[1721169009406,2.91969,3425.1,3424.3,3.50429]
[1721169009607,5.91972,3425.0,3424.3,2.92022]
[1721169009846,3.0,3425.0,3424.4,2.92021]
[1721169010138,3.0,3425.0,3423.9,0.55]
[1721169010344,2.91938,3425.4,3424.7,2.91996]
[1721169010549,2.91938,3425.4,3424.7,3.50397]
[1721169010901,2.91933,3425.5,3424.8,2.91982]
[1721169011306,2.91936,3425.4,3424.5,2.92009]
[1721169011521,2.91936,3425.4,3424.7,2.91989]
[1721169011732,2.91936,3425.4,3424.8,2.91987]
[1721169011943,2.9192,3425.6,3424.9,2.91978]
[1721169012260,5.42705,3425.8,3424.9,2.91978]
[1721169012261,5.83814,3425.8,3424.9,2.91978]
[1721169012465,2.3821,3425.9,3424.7,5.38667]
[1721169012466,2.9193,3425.5,3424.7,5.38667]
[1721169012614,0.583854,3425.4,3424.7,2.4668]
[1721169012810,2.91937,3425.4,3424.6,2.92004]
[1721169013322,2.91924,3425.6,3424.6,2.91998]
[1721169013519,2.91938,3425.4,3424.6,2.91998]
[1721169013946,5.8385,3425.6,3424.8,2.91982]
[1721169014152,2.91929,3425.5,3424.8,2.91982]
[1721169014739,2.91929,3425.5,3424.9,2.91978]
[1721169014955,2.91917,3425.7,3424.9,2.91978]
[1721169015158,3.0,3425.6,3424.9,2.91978]
[1721169015453,5.91919,3425.6,3424.9,2.91978]
[1721169015618,2.91919,3425.6,3424.9,2.91978]
[1721169016174,2.91929,3425.5,3424.9,2.91978]
[1721169016331,2.91929,3425.5,3424.7,2.91988]
[1721169016534,0.883848,3425.4,3424.8,2.91987]
[1721169016936,3.803228,3425.4,3424.5,5.84014]
[1721169017250,6.722668,3425.4,3424.6,3.47002]
[1721169017426,2.91945,3425.3,3424.6,3.47002]
[1721169018435,2.91955,3425.2,3424.4,2.92015]
[1721169018630,2.91955,3425.2,3424.3,2.4668]
[1721169018631,2.91978,3425.0,3424.3,2.4668]
[1721169018863,2.91979,3424.9,3424.3,5.3871]
[1721169019290,2.508,3425.8,3424.3,6.217851]
[1721169019440,19.91,3427.9,3424.7,2.91991]
[1721169019441,2.91945,3425.3,3424.7,2.91991]
[1721169019805,2.91945,3425.3,3424.5,2.92006]
[1721169020084,2.91945,3425.3,3424.7,2.91995]
[1721169020427,2.91934,3425.5,3424.8,2.91987]
[1721169021090,2.91923,3425.6,3424.9,2.91978]
[1721169021675,2.91935,3425.5,3424.8,2.91983]
[1721169022334,2.91935,3425.5,3424.8,5.83963]
[1721169022730,2.91935,3425.5,3424.9,2.91978]
[1721169024674,2.91911,3425.7,3424.9,2.91978]
[1721169024876,3.0,3425.6,3424.9,2.91978]
[1721169025079,5.91921,3425.6,3424.9,2.91978]
[1721169025388,4.73167944,3426.2,3424.9,2.91978]
[1721169025389,2.91873,3426.2,3425.4,2.91934]
[1721169025535,2.4076,3426.7,3425.2,2.91946]
[1721169025736,2.919,3425.9,3425.2,2.91946]
[1721169025937,2.919,3425.9,3425.2,5.83893]
[1721169026178,2.919,3425.9,3425.2,2.91946]
[1721169026179,2.91903,3425.8,3425.2,2.91946]
[1721169026955,2.91893,3426.0,3425.2,2.91946]
[1721169027171,2.91871,3426.2,3425.5,2.91922]
[1721169027385,2.91877,3426.1,3425.5,2.91922]
[1721169027593,2.91877,3426.1,3425.4,2.91932]
[1721169027791,2.91877,3426.1,3425.5,2.91927]
[1721169028174,2.919,3425.9,3425.2,2.91949]
[1721169028476,2.91877,3426.1,3425.2,2.91948]
[1721169028708,2.91885,3426.0,3425.3,2.91943]
[1721169028916,3.210735,3426.0,3425.3,2.91943]
[1721169029712,5.91837,3426.6,3425.6,2.91912]
[1721169029713,2.91864,3426.3,3425.6,2.91912]
[1721169032170,2.91864,3426.3,3425.0,2.326]
[1721169032171,3.0,3426.6,3425.2,2.9195]
[1721169032371,2.4076,3426.7,3425.3,0.55]
[1721169033201,2.91839,3426.6,3425.8,2.91898]
[1721169033409,1.124426,3426.5,3425.9,2.91892]
[1721169033567,4.124426,3426.5,3425.9,2.91892]
[1721169033904,1.124426,3426.5,3425.9,2.91892]
[1721169034104,3.0,3426.4,3425.9,2.91892]
[1721169034308,3.0,3426.4,3425.9,5.8378]
[1721169034481,1.124426,3426.5,3425.9,5.8378]
[1721169034910,2.91821,3426.8,3425.7,2.4804]
[1721169035110,5.23125,3427.1,3425.7,2.4804]
[1721169035111,5.23125,3427.1,3426.4,2.91849]
[1721169036154,2.91795,3427.1,3426.4,2.91849]
[1721169036579,2.91783,3427.2,3426.5,2.91842]
[1721169038116,2.91797,3427.1,3426.5,2.91842]
[1721169038320,0.58358,3427.0,3426.5,2.91842]
[1721169038878,2.3133,3427.5,3426.6,2.91832]
[1721169039215,5.23095,3427.5,3426.6,2.91832]
[1721169039513,2.91775,3427.3,3426.6,2.91832]
[1721169039718,3.0,3427.4,3426.7,2.91824]
[1721169040081,5.3133,3427.5,3426.7,2.91824]
[1721169040425,3.991592,3427.4,3426.7,2.91824]
[1721169040713,3.0,3427.3,3426.7,2.91824]
[1721169041013,3.0,3427.3,3426.8,2.91816]
[1721169041582,1.073882,3427.4,3426.8,2.91816]
[1721169041783,3.991572,3427.4,3426.8,2.91816]
[1721169042091,1.81098843,3428.2,3426.4,2.4758]
[1721169042296,2.91707,3428.1,3427.2,2.4758]
[1721169042607,2.91707,3428.1,3427.4,2.91763]
[1721169042608,2.91715,3428.0,3427.4,2.91763]
[1721169042811,2.91707,3428.1,3427.4,2.91763]
[1721169042812,0.583422,3427.9,3427.4,2.91763]
[1721169042991,2.91698,3428.2,3427.5,2.9175]
[1721169043192,5.2212,3428.3,3427.2,2.4758]
[1721169043193,2.91676,3428.5,3427.2,2.4758]
[1721169043534,2.91667,3428.6,3428.0,2.91709]
[1721169043731,2.91647,3428.8,3428.0,2.91709]
[1721169044035,2.91647,3428.8,3428.0,5.83418]
[1721169044188,3.750629,3428.7,3428.1,2.91706]
[1721169044705,0.834079,3428.7,3428.1,2.91706]
[1721169044901,2.91643,3428.9,3428.1,2.91706]
[1721169045236,5.22046,3429.2,3428.1,2.91706]
[1721169045237,2.91628,3429.1,3428.1,2.91706]
[1721169045445,2.91634,3429.0,3428.3,2.91687]
[1721169045794,3.0,3428.9,3428.3,2.91687]
[1721169046213,2.91621,3429.1,3428.3,2.91687]
[1721169046411,4.113658,3429.0,3428.3,2.91687]
[1721169047365,2.91672,3428.6,3427.5,2.4592]
[1721169047529,2.91674,3428.5,3427.8,2.91727]
[1721169047734,2.91674,3428.5,3427.5,2.4592]
[1721169047735,2.9169,3428.3,3427.5,2.4592]
[1721169047915,2.91725,3427.9,3426.9,5.3692]
[1721169048112,2.91725,3427.9,3426.6,7.37]
[1721169048113,2.91774,3427.3,3426.4,2.91846]
[1721169048316,2.91797,3427.1,3426.3,2.4592]
[1721169048524,0.291774,3427.2,3426.4,2.91849]
[1721169048747,3.209614,3427.2,3426.4,2.91849]
[1721169049123,0.291774,3427.2,3426.3,5.37771]
[1721169049327,2.91766,3427.4,3426.6,2.91828]
[1721169049532,2.91776,3427.3,3426.3,5.37776]
[1721169049864,2.91792,3427.1,3426.3,5.37776]
[1721169050150,2.91792,3427.1,3426.3,2.91856]
[1721169050354,2.91783,3427.2,3426.3,2.91856]
[1721169050655,3.501381,3427.2,3426.3,2.91856]
[1721169051055,2.91792,3427.1,3426.5,2.91842]
[1721169051363,2.91781,3427.3,3426.5,2.91842]
[1721169051862,2.91793,3427.1,3426.3,2.91856]
[1721169052356,2.508,3427.7,3426.5,2.91842]
[1721169052357,2.9178,3427.3,3426.5,2.91842]
[1721169053356,2.9178,3427.3,3426.6,2.91833]
[1721169053959,5.83522,3427.5,3426.6,2.91833]
[1721169054143,3.751982,3427.4,3426.6,2.91833]
[1721169054454,2.91777,3427.3,3426.6,2.91833]
[1721169054656,2.9174,3427.8,3426.9,2.91803]
[1721169055017,3.0,3427.7,3426.9,2.91803]
[1721169055222,0.59174,3427.6,3426.9,5.37723]
[1721169055447,2.91747,3427.7,3426.9,5.37723]
[1721169055649,2.91757,3427.6,3426.5,5.37759]
[1721169055822,2.91763,3427.5,3426.6,0.55]
[1721169056034,2.91763,3427.5,3426.6,3.46833]
[1721169056231,0.58352,3427.4,3426.6,3.46833]
[1721169056622,3.5012,3427.4,3426.7,2.91824]
[1721169056824,2.91733,3427.8,3426.8,2.9181]
[1721169057030,3.0,3427.7,3426.8,2.9181]
[1721169057337,2.91749,3427.6,3426.6,3.46827]
[1721169057721,2.91749,3427.6,3426.7,2.91825]
[1721169057948,2.91759,3427.5,3426.8,2.91811]
[1721169058659,5.91747,3427.7,3426.9,2.91807]
[1721169058871,2.91751,3427.6,3426.9,2.91807]
[1721169059238,3.0,3427.7,3426.9,2.91807]
[1721169059439,3.0,3427.7,3427.1,2.91791]
[1721169059753,2.415,3428.6,3427.2,2.4903]
[1721169059930,2.9172,3428.0,3427.2,3.0403]
[1721169060129,2.9172,3428.0,3427.2,5.95807]
[1721169060370,2.9172,3428.0,3427.3,2.91769]
[1721169060961,5.42477,3428.5,3426.8,2.91811]
[1721169061275,2.91792,3427.1,3426.3,2.91854]
[1721169061483,2.91792,3427.1,3426.2,9.8603]
[1721169061484,2.508,3427.7,3426.5,2.9184]
[1721169061690,2.415,3427.9,3426.7,2.9182]
[1721169061691,2.91762,3427.5,3426.7,2.9182]
[1721169062037,2.9175,3427.6,3426.8,2.91817]
[1721169062235,3.742498,3427.6,3426.8,2.91817]
[1721169062474,2.91751,3427.6,3426.9,5.40833]
[1721169062773,3.0,3428.0,3427.0,2.918]
[1721169062774,2.91739,3427.8,3427.0,2.918]
[1721169062977,2.91741,3427.7,3427.0,2.918]
[1721169063179,2.91741,3427.7,3426.8,2.91817]
[1721169063480,0.291741,3427.6,3427.0,2.91798]
[1721169063672,2.91741,3427.7,3427.0,2.91798]
[1721169063974,2.91752,3427.6,3427.0,2.91798]
[1721169064170,2.91743,3427.7,3427.0,2.91798]
[1721169064363,2.91727,3427.9,3427.0,2.91798]
[1721169064558,3.0,3427.8,3427.2,2.91783]
[1721169065003,3.0,3427.8,3427.0,2.91793]
[1721169065175,0.591727,3427.7,3427.0,2.91793]
[1721169065775,0.591727,3427.7,3426.8,2.91813]
[1721169065776,2.91758,3427.5,3426.8,2.91813]
[1721169065973,2.91758,3427.5,3426.6,5.40859]
[1721169065974,2.91758,3427.5,3426.9,2.91808]
[1721169067454,2.91758,3427.5,3426.7,2.9182]
[1721169067692,2.91758,3427.5,3426.9,2.91806]
[1721169067854,3.0,3427.8,3427.2,2.91782]
[1721169068054,5.91721,3428.0,3427.2,2.91782]
[1721169068273,2.91733,3427.8,3427.0,2.91793]
[1721169068473,2.91733,3427.8,3427.1,2.91791]
[1721169068903,5.91719,3428.0,3427.2,2.91782]
[1721169069058,2.91734,3427.8,3427.2,2.91782]
[1721169069253,2.91734,3427.8,3426.9,2.91805]
[1721169069597,2.91734,3427.8,3427.0,0.55]
[1721169069961,2.91742,3427.7,3427.1,2.9179]
[1721169071158,3.833219,3428.0,3426.7,2.91821]
[1721169071397,0.8222294,3427.9,3426.7,2.91821]
[1721169071563,2.91766,3427.4,3426.7,2.91819]
[1721169071769,2.91766,3427.4,3426.8,2.9181]
[1721169071991,2.91766,3427.4,3426.4,2.91844]
[1721169072181,2.91789,3427.2,3426.5,2.91836]
[1721169072877,2.91793,3427.1,3426.4,2.9185]
[1721169073196,2.91789,3427.2,3426.2,5.24054]
[1721169073197,2.918,3427.0,3426.2,5.24054]
[1721169073491,2.918,3427.0,3426.4,2.91849]
[1721169073695,2.91791,3427.1,3426.4,2.91849]
[1721169073993,2.91783,3427.2,3426.5,2.91842]
[1721169074989,2.91775,3427.3,3426.6,2.91829]
[1721169075193,2.91775,3427.3,3426.6,2.91828]
[1721169075973,2.91767,3427.4,3426.7,2.91823]
[1721169076173,2.91767,3427.4,3426.7,5.83641]
[1721169076589,2.91767,3427.4,3426.7,2.91818]
[1721169076590,2.91776,3427.3,3426.7,2.91818]
[1721169076791,2.91776,3427.3,3426.5,2.91841]
[1721169076991,2.91776,3427.3,3426.6,0.55]
[1721169077312,3.750979,3427.3,3426.6,3.46828]
[1721169078426,3.750979,3427.3,3426.7,2.91823]
[1721169078582,2.91776,3427.3,3426.7,2.91823]
[1721169079713,2.4972,3427.6,3426.2,5.764634]
[1721169079714,5.83616,3427.0,3426.2,5.764634]
[1721169079874,2.508,3427.3,3425.8,9.635]
[1721169080074,2.91839,3426.6,3425.8,9.635]
[1721169080502,2.91839,3426.6,3426.0,2.91884]
[1721169080810,2.91839,3426.6,3425.8,12.55401]
[1721169080811,2.91855,3426.4,3425.8,9.635]
[1721169081019,2.91855,3426.4,3425.5,2.91927]
[1721169081218,5.41395,3426.4,3425.3,5.8294]
[1721169081434,2.91874,3426.2,3425.4,0.00642652]
[1721169081636,2.91892,3426.0,3425.1,2.265]
[1721169081800,2.4954,3426.4,3424.8,2.91982]
[1721169081801,2.91925,3425.6,3424.8,2.91982]
[1721169082135,2.91925,3425.6,3424.9,0.02721696]
[1721169082337,2.91925,3425.6,3424.8,3.438302]
[1721169082491,2.91925,3425.6,3424.9,2.91977]
[1721169082691,2.91912,3425.7,3425.0,2.91969]
[1721169083231,2.508,3426.1,3424.8,0.518482]
[1721169083232,2.91878,3426.1,3425.3,5.18437]
[1721169083439,2.91878,3426.1,3425.3,5.702807]
[1721169083641,2.91886,3426.0,3425.3,5.702807]
[1721169084039,2.91886,3426.0,3425.3,5.18437]
[1721169084212,2.91868,3426.2,3425.4,2.91934]
[1721169085064,3.0,3426.6,3425.6,2.91919]
[1721169085065,2.9186,3426.3,3425.6,2.91919]
[1721169085409,2.4954,3426.8,3425.6,2.91919]
[1721169085410,2.9185,3426.5,3425.6,5.83832]
[1721169085613,3.0,3426.4,3425.6,5.83832]
[1721169085929,3.0,3426.4,3425.7,2.91909]
[1721169086124,3.0,3426.5,3425.7,2.91909]
[1721169086440,5.91847,3426.5,3425.7,2.91909]
[1721169086647,1.81122972,3427.4,3426.1,2.265]
[1721169086648,2.91804,3427.0,3426.1,2.265]
[1721169086813,2.91804,3427.0,3426.2,2.91868]
[1721169087449,2.91804,3427.0,3426.1,2.32336943]
[1721169087450,2.91822,3426.8,3426.1,2.265]
[1721169087663,2.91827,3426.7,3425.8,2.91898]
[1721169087815,2.91827,3426.7,3425.9,0.55]
[1721169088015,2.91827,3426.7,3426.1,2.91875]
[1721169089357,2.91827,3426.7,3425.9,3.46887]
[1721169090051,2.91827,3426.7,3425.9,0.55]
[1721169090357,2.91827,3426.7,3426.1,2.91876]
[1721169090516,2.91827,3426.7,3426.0,5.8376]
[1721169090716,2.91813,3426.9,3426.1,2.91875]
[1721169090918,2.91813,3426.9,3426.0,3.8424222]
[1721169091214,3.0,3427.5,3426.0,0.9236422]
[1721169091417,2.4799,3427.8,3425.7,2.848822]
[1721169091418,2.91756,3427.6,3426.7,2.91823]
[1721169091730,2.91767,3427.4,3426.7,2.91823]
[1721169092567,2.91756,3427.6,3426.8,2.91817]
[1721169092715,3.0,3427.5,3426.8,2.91817]
[1721169093155,2.91719,3428.0,3427.0,2.91799]
[1721169093356,5.20629,3428.3,3427.4,2.91765]
[1721169093566,2.91678,3428.5,3427.7,2.91734]
[1721169093775,2.91678,3428.5,3427.6,2.91741]
[1721169094054,2.91678,3428.5,3427.8,2.91726]
[1721169094614,2.91661,3428.7,3427.8,5.8345]
[1721169094818,2.9165,3428.8,3427.8,2.91724]
[1721169094819,2.91651,3428.8,3427.8,2.91724]
[1721169095040,2.91666,3428.6,3427.9,2.91722]
[1721169095463,0.52059,3428.7,3427.2,2.91779]
[1721169095667,3.43715,3428.7,3428.0,2.91709]
[1721169095819,0.635366,3428.6,3428.0,2.91709]
[1721169096537,0.52059,3428.7,3428.1,2.91704]
[1721169096726,2.91645,3428.9,3428.1,2.91704]
[1721169096924,3.0,3428.8,3428.1,2.91704]
[1721169097372,5.91651,3428.8,3428.1,2.91704]
[1721169097520,2.91656,3428.7,3428.1,2.91704]
[1721169097724,5.91651,3428.8,3428.1,2.91704]
[1721169098338,3.0,3428.8,3428.2,2.91697]
[1721169098537,3.0,3428.9,3428.2,2.91697]
[1721169098859,3.883247,3428.9,3428.2,2.91697]
[1721169099167,6.799627,3428.9,3428.2,2.91697]
[1721169099460,3.883247,3428.9,3428.2,2.91697]
[1721169099678,5.20532,3429.5,3428.7,2.91655]
[1721169100227,2.91605,3429.3,3428.7,2.91655]
[1721169100962,2.508,3429.9,3428.7,2.91655]
[1721169101137,2.91603,3429.4,3428.7,2.91655]
[1721169101341,2.91605,3429.3,3428.7,2.91655]
[1721169101835,2.91605,3429.3,3428.5,2.91669]
[1721169102046,2.91605,3429.3,3428.7,2.91655]
[1721169102856,2.91605,3429.3,3428.5,2.91669]
[1721169103085,2.91605,3429.3,3428.6,2.91658]
[1721169104395,2.91605,3429.3,3428.7,2.91655]
[1721169104580,2.91587,3429.5,3428.7,3.499874]
[1721169104884,2.91597,3429.4,3428.7,3.499874]
[1721169105081,2.91587,3429.5,3428.7,2.91655]
[1721169106255,2.91605,3429.3,3428.7,2.91655]
[1721169108769,2.91605,3429.3,3428.5,2.91669]
[1721169108966,2.91605,3429.3,3428.5,2.91665]
[1721169109174,2.91605,3429.3,3428.6,2.91662]
[1721169109878,5.91557,3429.9,3428.6,0.583327]
[1721169110081,3.0,3429.8,3428.7,0.55]